Workbook

Sheet Sheet1
A1: WEIGHT PERCENT | E1: Raw Data NORMALIZED to sum to 100%
A3: WELL NAME | B3: Twist About Prospect - Columbia Gas #20308
A4: JOB # | B4: 15-0202
A5: SAMPLE ID | B5: 1 | C5: 2 | D5: 3 | E5: 4 | F5: 5 | G5: 6 | H5: 7 | I5: 8 | J5: 9 | K5: 10 | L5: 11
A6: SAMPLE DEPTH | B6: 2191.00 | C6: 2193.50 | D6: 2196.74 | E6: 2198.18 | F6: 2202.50 | G6: 2205.82 | H6: 2208.42 | I6: 2215.66 | J6: 2221.50 | K6: 2222.58 | L6: 2226.00
A8: NON-CLAY FRACTION
A9: Quartz | B9: 71.68928732 | C9: 90.62744113 | D9: 72.90008684 | E9: 80.46634938 | F9: 81.23669011 | G9: 72.57633702 | H9: 76.86316877 | I9: 77.64805935 | J9: 76.1165931 | K9: 72.06714433 | L9: 68.57094122
A10: K-Feldspar | B10: 1.750353423 | C10: 0.6403552124 | D10: 0.9776422199 | E10: 1.19650632 | F10: 0.4967067353 | G10: 1.480600208 | H10: 1.100795052 | I10: 1.298225454 | J10: 1.125645792 | K10: 1.298810168 | L10: 1.328978993
A11: Plagioclase | B11: 0.7602699121 | C11: 1.805771668 | D11: 0.9525151045 | E11: 3.149953277 | F11: 1.044043042 | G11: 4.214947815 | H11: 3.345135329 | I11: 1.995974641 | J11: 2.180963864 | K11: 1.917116474 | L11: 1.26012795
A12: Apatite | B12: 0 | C12: 0 | D12: 0.1954204585 | E12: 0 | F12: 0 | G12: 0.3299085054 | H12: 0 | I12: 0.2994073419 | J12: 0.2636366672 | K12: 0.3992201104 | L12: 0.5307619897
A13: Pyrite | B13: 0 | C13: 0 | D13: 0.5698852797 | E13: 0.7937087254 | F13: 0.2904568425 | G13: 0.2325876661 | H13: 0 | I13: 0.1351366778 | J13: 0 | K13: 0.2726301369 | L13: 0
A14: Calcite | B14: 22.16936325 | C14: 0.8261320602 | D14: 23.13330054 | E14: 0 | F14: 11.79920898 | G14: 0.3315889331 | H14: 0.7385342827 | I14: 1.555453603 | J14: 2.605243419 | K14: 3.971842286 | L14: 0.6284569336
A15: Dolomite | B15: 0 | C15: 1.229441948 | D15: 0 | E15: 0 | F15: 0.5210920205 | G15: 0 | H15: 0 | I15: 0 | J15: 0 | K15: 0 | L15: 0
A16: Siderite | B16: 0 | C16: 0 | D16: 0 | E16: 0 | F16: 0 | G16: 0 | H16: 0.1775128865 | I16: 0.3633890259 | J16: 0.2805438574 | K16: 0.3133711311 | L16: 1.403202877
A17: TOTAL | B17: =SUM(B9:B16) -> 96.3692739 | C17: =SUM(C9:C16) -> 95.12914202 | D17: =SUM(D9:D16) -> 98.72885045 | E17: =SUM(E9:E16) -> 85.6065177 | F17: =SUM(F9:F16) -> 95.38819773 | G17: =SUM(G9:G16) -> 79.16597015 | H17: =SUM(H9:H16) -> 82.22514632 | I17: =SUM(I9:I16) -> 83.29564609 | J17: =SUM(J9:J16) -> 82.5726267 | K17: =SUM(K9:K16) -> 80.24013463 | L17: =SUM(L9:L16) -> 73.72246997
A19: CLAY FRACTION
A20: Mixed-Layer ILLITE/SMECTITE (Includes R3) | B20: 0.3070049803 | C20: 0.3167595302 | D20: 0.2122523038 | E20: 1.221905814 | F20: 0.4735629706 | G20: 1.228863237 | H20: 1.047409492 | I20: 1.017832572 | J20: 1.090598826 | K20: 1.137696475 | L20: 1.382216842
A21: Illite+Mica | B21: 1.604448401 | C21: 1.580269278 | D21: 1.058897248 | E21: 7.914747172 | F21: 2.362539853 | G21: 8.157624011 | H21: 6.476789743 | I21: 6.038002446 | J21: 6.587476765 | K21: 7.432939398 | L21: 8.490877137
A22: Chlorite | B22: 1.719272716 | C22: 0.9111391314 | D22: 0 | E22: 5.256829312 | F22: 1.775699444 | G22: 11.4475426 | H22: 10.25065445 | I22: 7.981443627 | J22: 9.749297706 | K22: 9.2064759 | L22: 12.93931196
A23: Kaolinite | B23: 0 | C23: 2.062690041 | D23: 0 | E23: 0 | F23: 0 | G23: 0 | H23: 0 | I23: 1.667075263 | J23: 0 | K23: 1.982753593 | L23: 3.465124092
A24: TOTAL | B24: =SUM(B20:B23) -> 3.630726097 | C24: =SUM(C20:C23) -> 4.870857981 | D24: =SUM(D20:D23) -> 1.271149552 | E24: =SUM(E20:E23) -> 14.3934823 | F24: =SUM(F20:F23) -> 4.611802268 | G24: =SUM(G20:G23) -> 20.83402985 | H24: =SUM(H20:H23) -> 17.77485368 | I24: =SUM(I20:I23) -> 16.70435391 | J24: =SUM(J20:J23) -> 17.4273733 | K24: =SUM(K20:K23) -> 19.75986537 | L24: =SUM(L20:L23) -> 26.27753003
A26: GRAND TOTAL | B26: =B24+B17 -> 100 | C26: =C24+C17 -> 100 | D26: =D24+D17 -> 100 | E26: =E24+E17 -> 100 | F26: =F24+F17 -> 100 | G26: =G24+G17 -> 100 | H26: =H24+H17 -> 100 | I26: =I24+I17 -> 100 | J26: =J24+J17 -> 100 | K26: =K24+K17 -> 100 | L26: =L24+L17 -> 100
A28: % Expandable Layers in I/S | B28: 14.82919158 | C28: 14.82919158 | D28: 14.82919158 | E28: 14.82919158 | F28: 14.82919158 | G28: 14.82919158 | H28: 14.82919158 | I28: 14.82919158 | J28: 14.82919158 | K28: 14.82919158 | L28: 14.82919158
A29: % I/S to Illite in <1.0um Fraction | B29: 16.69766578 | C29: 16.69766578 | D29: 16.69766578 | E29: 16.69766578 | F29: 16.69766578 | G29: 16.69766578 | H29: 16.69766578 | I29: 16.69766578 | J29: 16.69766578 | K29: 16.69766578 | L29: 16.69766578
A30: % Expandable I/S Layers in sample | B30: 0.0455263567 | C30: 0.0469728776 | D30: 0.03147530077 | E30: 0.1811987541 | F30: 0.07022556019 | G30: 0.1822304837 | H30: 0.1553223603 | I30: 0.1509363421 | J30: 0.1617269893 | K30: 0.1687111899 | L30: 0.2049715836
A32: % Fe in Dolomite/Ankerite | C32: 46.8500419
A34: Comments
A37: Many of the samples did not have enough resolution with normal XRD runs to determine
A38: clay expandability. For these samples, approximate average was used (highlighted in orange).
A40: No TOC analyses were requested for these samples
